bitfinex/quotes_BTCUSD_20240728
["timestamp","ask_amount","ask_price","bid_price","bid_amount"]
[1722161861575,0.236017,67792.0,67785.0,0.118019]
[1722161861807,0.04417766,67788.0,67785.0,0.118019]
[1722161862015,0.1078551,67787.0,67785.0,0.118019]
[1722161862247,0.1078551,67786.0,67785.0,0.118019]
[1722161862648,0.05712022,67786.0,67784.0,0.120021]
[1722161862809,0.04617766,67788.0,67787.0,0.354049]
[1722161862810,0.002,67788.0,67787.0,0.354049]
[1722161863013,0.002,67788.0,67787.0,1.21687457]
[1722161865191,0.002,67788.0,67787.0,0.1]
[1722161865192,0.118014,67788.0,67787.0,0.1]
[1722161865389,0.05675921,67788.0,67778.0,0.0648]
[1722161865624,0.17477321,67788.0,67787.0,0.011]
[1722161865752,0.31382899,67788.0,67787.0,0.011]
[1722161865955,0.17374366,67788.0,67787.0,0.011]
[1722161866153,0.29175766,67788.0,67787.0,0.011]
[1722161866404,0.15164352,67788.0,67787.0,0.023]
[1722161866811,0.26965752,67788.0,67787.0,0.023]
[1722161866975,0.10744187,67788.0,67787.0,0.023]
[1722161867176,0.1742247,67788.0,67787.0,0.012]
[1722161867376,0.10791898,67788.0,67787.0,0.012]
[1722161867755,0.10791898,67788.0,67787.0,0.730582]
[1722161867756,0.05723632,67788.0,67787.0,0.730582]
[1722161867963,0.04420303,67792.0,67790.0,0.236023]
[1722161868196,0.05842947,67791.0,67790.0,0.236023]
[1722161868401,0.04420303,67794.0,67789.0,0.236026]
[1722161868402,0.05842937,67793.0,67789.0,0.236026]
[1722161868576,0.05842937,67793.0,67792.0,0.59004]
[1722161868804,0.05842937,67793.0,67792.0,0.65484]
[1722161869005,0.00646817,67793.0,67792.0,0.65484]
[1722161869114,0.06630572,67799.0,67798.0,0.117997]
[1722161869317,0.11905378,67799.0,67792.0,0.300816]
[1722161869516,0.11905378,67799.0,67797.0,0.353997]
[1722161869517,0.16325547,67798.0,67797.0,0.353997]
[1722161869776,0.16325547,67798.0,67792.0,0.0648]
[1722161869777,0.16412323,67798.0,67792.0,0.0648]
[1722161870075,0.00811052,67799.0,67797.0,0.117998]
[1722161870076,0.06630572,67799.0,67797.0,0.117998]
[1722161870296,0.00083,67800.0,67796.0,0.118]
[1722161870297,0.06097004,67798.0,67796.0,0.118]
[1722161870418,0.12002349,67797.0,67796.0,0.116]
[1722161870834,0.12002349,67797.0,67792.0,0.0648]
[1722161870835,0.11926146,67797.0,67792.0,0.0648]
[1722161871076,0.04420239,67798.0,67795.0,0.118002]
[1722161871077,0.05829142,67796.0,67795.0,0.118002]
[1722161871279,0.16133196,67797.0,67795.0,0.118002]
[1722161871476,0.20722879,67800.0,67793.0,0.118005]
[1722161871477,0.23703196,67796.0,67793.0,0.118005]
[1722161871678,0.16133196,67795.0,67793.0,0.118005]
[1722161871907,0.11712957,67794.0,67792.0,0.118006]
[1722161872087,0.16133339,67793.0,67792.0,0.118006]
[1722161872294,0.16133339,67793.0,67788.0,0.0648]
[1722161872495,0.04420938,67789.0,67788.0,0.1]
[1722161872647,0.05883815,67789.0,67782.0,0.300849]
[1722161872854,0.1025008,67790.0,67784.0,0.118021]
[1722161872855,0.16133999,67788.0,67784.0,0.118021]
[1722161873056,0.05829142,67787.0,67785.0,0.1]
[1722161873265,0.05829142,67786.0,67785.0,0.1]
[1722161873475,0.11115459,67786.0,67782.0,0.0648]
[1722161873683,0.118017,67787.0,67782.0,0.1648]
[1722161873684,0.05736699,67785.0,67782.0,0.1648]
[1722161873937,0.05736699,67784.0,67782.0,0.282825]
[1722161874131,0.05736699,67783.0,67782.0,0.282825]
[1722161874307,0.05736699,67783.0,67778.0,0.118031]
[1722161874542,0.05736699,67782.0,67779.0,0.21803]
[1722161874741,0.05736699,67781.0,67779.0,0.1]
[1722161874933,0.05736699,67780.0,67779.0,0.1]
[1722161875391,0.05736699,67782.0,67779.0,0.1]
[1722161875596,0.05736699,67781.0,67778.0,0.112]
[1722161876015,0.05736699,67781.0,67778.0,0.230031]
[1722161876226,0.05736699,67780.0,67778.0,0.230031]
[1722161876429,0.05736699,67779.0,67778.0,0.230031]
[1722161877071,0.05736699,67779.0,67778.0,0.454095]
[1722161877281,0.05736699,67779.0,67778.0,0.690159]
[1722161877497,0.05736699,67779.0,67778.0,0.701159]
[1722161877719,0.05736699,67779.0,67778.0,0.690159]
[1722161878132,0.05736699,67779.0,67778.0,0.718159]
[1722161878573,0.05736699,67779.0,67778.0,0.858659]
[1722161879856,0.04421504,67784.0,67781.0,0.236051]
[1722161879971,0.08843008,67787.0,67782.0,0.354075]
[1722161879972,0.15705711,67783.0,67782.0,0.354075]
[1722161880177,0.10708531,67783.0,67782.0,0.354075]
[1722161880396,0.12088469,67783.0,67782.0,0.354075]
[1722161880590,0.16509897,67783.0,67782.0,0.354075]
[1722161880837,0.18720725,67783.0,67782.0,0.354075]
[1722161881031,0.12088469,67783.0,67782.0,0.366075]
[1722161881274,0.12088469,67783.0,67782.0,0.377075]
[1722161881275,0.16509888,67783.0,67782.0,0.377075]
[1722161881481,0.12088469,67783.0,67782.0,0.023]
[1722161881685,0.16509871,67783.0,67782.0,0.023]
[1722161881886,0.12088469,67783.0,67782.0,0.023]
[1722161882133,0.23818747,67783.0,67782.0,0.023]
[1722161882423,0.87829576,67783.0,67782.0,0.023]
[1722161882586,1.11434276,67783.0,67782.0,0.023]
[1722161882966,1.32310614,67783.0,67782.0,0.023]
[1722161883400,1.32310614,67783.0,67767.0,0.45077872]
[1722161883401,0.118049,67768.0,67767.0,0.45077872]
[1722161883749,0.12010481,67768.0,67767.0,0.45077872]
[1722161883860,0.12010481,67768.0,67764.0,0.118056]
[1722161884065,0.11213355,67767.0,67763.0,0.118058]
[1722161884361,0.05730492,67766.0,67762.0,0.118059]
[1722161884558,0.05730492,67765.0,67762.0,0.23612]
[1722161884762,0.00789641,67766.0,67763.0,0.1]
[1722161884962,0.0778,67769.0,67763.0,0.1]
[1722161884963,0.0778,67769.0,67767.0,0.012]
[1722161885163,0.0778,67769.0,67765.0,0.118055]
[1722161885164,0.10375395,67768.0,67765.0,0.118055]
[1722161885385,0.05664724,67767.0,67765.0,0.118055]
[1722161885594,0.0778,67769.0,67763.0,0.250116]
[1722161885595,0.05664724,67766.0,67763.0,0.250116]
[1722161885793,0.0778,67769.0,67764.0,0.1]
[1722161886019,0.0564997,67768.0,67766.0,0.118051]
[1722161886222,0.0564997,67768.0,67764.0,0.1]
[1722161886223,0.0564997,67768.0,67767.0,0.118051]
[1722161886424,0.05649739,67770.0,67767.0,0.065]
[1722161886633,0.05649739,67769.0,67768.0,0.590247]
[1722161886835,0.04420166,67775.0,67773.0,0.11804]
[1722161887069,0.10281194,67774.0,67773.0,0.11804]
[1722161887269,0.10281194,67774.0,67771.0,0.236088]
[1722161887471,0.05630426,67773.0,67772.0,0.118042]
[1722161887672,0.05630442,67774.0,67773.0,0.118041]
[1722161887883,0.10248399,67774.0,67773.0,0.118041]
[1722161888074,0.10248399,67774.0,67772.0,0.118042]
[1722161888426,0.05623825,67773.0,67771.0,0.118044]
[1722161888635,0.05623825,67772.0,67771.0,0.118044]
[1722161889008,0.05623825,67772.0,67771.0,0.125044]
[1722161890407,0.05623825,67772.0,67771.0,0.118044]
[1722161890807,0.05623825,67772.0,67771.0,0.127044]
[1722161891694,0.05507666,67772.0,67771.0,0.127044]
[1722161891902,0.05507666,67772.0,67771.0,0.017]
[1722161892119,0.05488278,67772.0,67771.0,0.017]
[1722161892317,0.05488278,67774.0,67771.0,0.017]
[1722161892527,0.80664179,67772.0,67771.0,0.017]
[1722161892728,0.93553433,67772.0,67771.0,0.017924]
[1722161892979,0.82508968,67772.0,67771.0,0.017924]
[1722161893518,1.08200925,67772.0,67771.0,0.008924]
[1722161893723,1.08200925,67772.0,67771.0,0.015924]
[1722161893724,1.05990487,67772.0,67771.0,0.015924]
[1722161893944,1.05990487,67772.0,67771.0,0.007924]
[1722161894142,1.05990487,67772.0,67771.0,0.000924]
[1722161894351,1.05990487,67772.0,67771.0,0.006924]
[1722161894574,1.05990487,67772.0,67771.0,0.000924]
[1722161894768,0.97145714,67772.0,67771.0,0.000924]
[1722161894975,0.97145714,67772.0,67771.0,0.001924]
[1722161894976,0.97345714,67772.0,67771.0,0.001924]
[1722161895152,0.97445714,67772.0,67771.0,0.001924]
[1722161895354,1.06278879,67772.0,67771.0,0.001924]
[1722161895593,1.06478879,67772.0,67771.0,0.002924]
[1722161895797,1.4420027,67772.0,67771.0,0.002924]
[1722161895995,1.30035485,67772.0,67771.0,0.002924]
[1722161896577,1.30035485,67772.0,67771.0,0.001924]
[1722161896578,1.29935485,67772.0,67771.0,0.001924]
[1722161897057,1.30135485,67772.0,67771.0,0.001924]
[1722161897671,1.44564478,67772.0,67771.0,0.001924]
[1722161897874,1.44536924,67772.0,67771.0,0.001924]
[1722161898294,1.68145424,67772.0,67771.0,0.001924]
[1722161898500,2.04053924,67772.0,67771.0,0.001924]
[1722161898706,0.967755,67759.0,67758.0,0.000913]
[1722161898912,1.06052278,67759.0,67758.0,0.000913]
[1722161899121,0.73671233,67759.0,67758.0,0.000913]
[1722161899339,1.03906262,67759.0,67758.0,0.000913]
[1722161899534,1.25310399,67759.0,67758.0,0.000913]
[1722161899738,1.56578783,67759.0,67758.0,0.000913]
[1722161899885,1.41549577,67759.0,67758.0,0.000913]
[1722161900292,1.30515836,67759.0,67758.0,0.000913]
[1722161900508,1.39338815,67759.0,67758.0,0.000913]
[1722161900722,1.54128836,67759.0,67758.0,0.000913]
[1722161900889,1.81311597,67759.0,67758.0,0.000913]
[1722161901091,1.81711597,67759.0,67758.0,0.000913]
[1722161901296,1.5184613,67759.0,67758.0,0.000913]
[1722161901505,1.40383849,67759.0,67758.0,0.000913]
[1722161901712,1.40383849,67759.0,67737.0,0.0768617]
[1722161901713,0.0818,67756.0,67737.0,0.0768617]
[1722161901904,0.118093,67744.0,67737.0,0.11828071]
[1722161902115,0.118095,67742.0,67737.0,0.00017771]
[1722161902316,0.118096,67741.0,67737.0,0.00017771]
[1722161902514,0.05231909,67740.0,67737.0,0.00017771]
[1722161903183,0.05231909,67740.0,67739.0,0.1181]
[1722161903420,0.0818,67745.0,67740.0,0.118098]
[1722161903574,0.05385883,67744.0,67740.0,0.118098]
[1722161903779,0.05385883,67744.0,67737.0,0.00017771]
[1722161903780,0.17194983,67744.0,67737.0,0.00017771]
[1722161904130,0.118096,67741.0,67737.0,0.00017771]
[1722161904384,0.05386013,67740.0,67737.0,0.00717771]
[1722161904577,0.118092,67744.0,67737.0,0.00017771]
[1722161904724,0.0542564,67743.0,67738.0,0.118101]
[1722161905128,0.0542564,67743.0,67737.0,0.11828071]
[1722161905129,0.118095,67742.0,67737.0,0.11828071]
[1722161905537,0.003,67741.0,67737.0,0.11828071]
[1722161905737,0.118095,67742.0,67737.0,0.11828071]
[1722161905939,0.118095,67742.0,67735.0,0.236212]
[1722161906167,0.0818,67745.0,67735.0,0.236212]
[1722161906344,0.0818,67745.0,67732.0,0.0631]
[1722161906345,0.118093,67743.0,67737.0,0.118102]
[1722161906546,0.118093,67743.0,67738.0,0.118101]
[1722161906981,0.118093,67743.0,67735.0,0.118107]
[1722161906982,0.236189,67743.0,67735.0,0.118107]
[1722161907184,0.118097,67741.0,67736.0,0.118105]
[1722161907383,0.240189,67743.0,67737.0,0.118103]
[1722161907384,0.118093,67743.0,67737.0,0.118103]
[1722161907722,0.122093,67743.0,67737.0,0.118103]
[1722161908056,0.19989,67745.0,67736.0,0.23621]
[1722161908259,0.2449378,67756.0,67737.0,0.1435]
[1722161908260,0.001,67741.0,67737.0,0.1435]
[1722161908499,0.001,67741.0,67740.0,0.354295]
[1722161908702,0.001,67741.0,67740.0,0.118098]
[1722161908903,0.00835457,67741.0,67740.0,0.118098]
[1722161909058,0.001,67741.0,67740.0,0.354295]
[1722161909264,0.001,67741.0,67740.0,0.118098]
[1722161909468,0.00835457,67741.0,67740.0,0.118098]
[1722161909671,0.00835457,67741.0,67740.0,0.354295]
[1722161909875,0.001,67741.0,67740.0,0.354295]
[1722161910077,0.118084,67748.0,67743.0,0.118093]
[1722161910312,0.00735457,67747.0,67743.0,0.118093]
[1722161910476,0.00735457,67747.0,67741.0,0.354288]
[1722161910477,0.06178363,67747.0,67741.0,0.354288]
[1722161910684,0.06178363,67747.0,67740.0,0.005]
[1722161910685,0.17251806,67746.0,67740.0,0.005]
[1722161910927,0.05443064,67745.0,67740.0,0.123098]
[1722161911124,0.06178521,67745.0,67741.0,0.118096]
[1722161911332,0.00735457,67745.0,67741.0,0.118096]
[1722161912046,0.12544357,67745.0,67739.0,0.118099]
[1722161912224,0.1425,67743.0,67731.0,0.0631]
[1722161912428,0.1425,67743.0,67732.0,0.118112]
[1722161912429,0.44048637,67742.0,67732.0,0.118112]
[1722161912615,0.118104,67737.0,67732.0,0.118112]
[1722161913011,0.00735457,67736.0,67733.0,0.11811]
[1722161913655,0.00735457,67736.0,67731.0,0.184212]
[1722161913893,0.12545957,67736.0,67731.0,0.0631]
[1722161914251,0.12745957,67736.0,67733.0,0.015]
[1722161914458,0.00935457,67736.0,67733.0,0.015]
[1722161914659,0.00835457,67736.0,67733.0,0.007]
[1722161914865,0.00935457,67736.0,67733.0,0.007]
[1722161915226,0.00835457,67736.0,67733.0,0.007]
[1722161916073,0.00835457,67736.0,67735.0,0.118107]
[1722161916416,0.001,67736.0,67735.0,0.354321]
[1722161916530,0.001,67736.0,67735.0,0.118107]
[1722161916736,0.00828959,67736.0,67735.0,0.118107]
[1722161916933,0.236194,67741.0,67733.0,0.11935506]
[1722161917240,0.001,67736.0,67733.0,0.118109]
[1722161917462,0.00728959,67735.0,67733.0,0.126109]
[1722161917674,0.00728959,67735.0,67733.0,0.008]
[1722161917887,0.0818,67734.0,67733.0,0.008]
[1722161918110,0.0818,67734.0,67729.0,0.236234]
[1722161918349,0.00728959,67733.0,67731.0,0.118113]
[1722161918567,0.00728959,67733.0,67730.0,0.118115]
[1722161918766,0.00728959,67733.0,67727.0,0.000913]
[1722161918767,0.26268912,67733.0,67727.0,0.000913]
[1722161918971,0.236219,67734.0,67727.0,0.000913]
[1722161919190,0.00727677,67732.0,67729.0,0.118117]
[1722161919344,0.00726493,67733.0,67729.0,0.118117]
[1722161919546,0.118109,67734.0,67729.0,0.118117]
[1722161919752,0.00726493,67732.0,67729.0,0.118117]
[1722161919998,0.118111,67733.0,67727.0,0.237154]
[1722161920194,0.00726493,67731.0,67728.0,0.118118]
[1722161920429,0.118111,67733.0,67728.0,0.118118]
[1722161920643,0.00726493,67730.0,67729.0,0.118117]
[1722161920818,0.119112,67733.0,67730.0,0.011]
[1722161921169,0.118112,67733.0,67729.0,0.006]
[1722161921371,0.001,67731.0,67728.0,0.008]
[1722161921593,0.001,67731.0,67728.0,0.006]
[1722161921793,0.001,67731.0,67728.0,0.124118]
[1722161922019,0.001,67731.0,67730.0,0.359348]
[1722161922245,0.001,67733.0,67730.0,0.359348]
[1722161922246,0.001,67733.0,67731.0,0.118114]
[1722161922657,0.001,67733.0,67732.0,0.495937]
[1722161922868,0.001,67733.0,67732.0,0.968387]
[1722161923490,0.4771,67749.0,67744.0,0.0631]
[1722161923691,0.05316724,67748.0,67747.0,0.118085]
[1722161923896,0.05316724,67748.0,67747.0,0.354257]
[1722161924100,0.4771,67749.0,67748.0,0.354253]
[1722161924301,0.4771,67749.0,67748.0,0.732022]
[1722161924500,0.4771,67749.0,67748.0,0.968191]
[1722161924844,0.021,67749.0,67748.0,0.968191]
[1722161925252,0.012,67749.0,67748.0,0.968191]
[1722161925471,0.014,67749.0,67748.0,1.36861957]
[1722161925703,0.014,67749.0,67748.0,1.46861957]
[1722161926120,0.014,67749.0,67748.0,1.55743957]
[1722161926731,0.014,67749.0,67748.0,1.58043957]
[1722161926957,0.4771,67773.0,67772.0,0.653312]
[1722161927140,0.4771,67773.0,67772.0,0.0631]
[1722161927141,0.05293647,67773.0,67772.0,0.0631]
[1722161927360,0.05293607,67783.0,67778.0,0.118031]
[1722161927583,0.05293607,67783.0,67772.0,0.299185]
[1722161927584,0.08472965,67782.0,67781.0,0.118027]
[1722161927788,0.0529358,67782.0,67781.0,0.118027]
[1722161927992,0.0529358,67782.0,67779.0,0.118029]
[1722161928189,0.0529358,67781.0,67780.0,0.118028]
[1722161928396,0.118021,67785.0,67778.0,0.118031]
[1722161928609,0.5569,67786.0,67778.0,0.118031]
[1722161928610,0.05255695,67784.0,67779.0,0.11803]
[1722161928828,0.05255695,67783.0,67782.0,0.354075]
[1722161929027,0.47794,67796.0,67782.0,0.23605]
[1722161929028,0.118008,67792.0,67782.0,0.23605]
[1722161929231,0.0798,67793.0,67781.0,0.001]
[1722161929232,0.05254925,67791.0,67781.0,0.001]
[1722161929450,0.118003,67795.0,67787.0,0.236031]
[1722161929659,0.00084,67796.0,67784.0,0.236041]
[1722161929660,0.05254358,67794.0,67791.0,0.118009]
[1722161929856,0.00748082,67794.0,67790.0,0.11801]
[1722161930058,0.00748082,67794.0,67788.0,0.181114]
[1722161930265,0.118003,67795.0,67790.0,0.11801]
[1722161930471,0.118004,67794.0,67788.0,0.0631]
[1722161930677,0.00084,67796.0,67788.0,0.0631]
[1722161930678,0.118007,67793.0,67788.0,0.0631]
[1722161930892,0.118007,67793.0,67789.0,0.118011]
[1722161930893,0.00748082,67793.0,67789.0,0.118011]
[1722161931115,0.00084,67796.0,67789.0,0.118011]
[1722161931116,0.118003,67795.0,67789.0,0.118011]
[1722161931320,0.00084,67796.0,67795.0,0.118002]
[1722161931477,0.00084,67796.0,67795.0,0.354007]
[1722161931675,0.00084,67796.0,67792.0,0.118007]
[1722161931874,0.118006,67793.0,67788.0,0.0631]
[1722161932078,0.00084,67796.0,67790.0,0.11901]
[1722161932305,0.00084,67796.0,67790.0,0.119011]
[1722161932503,0.00084,67796.0,67790.0,0.236021]
[1722161932711,0.00084,67796.0,67795.0,0.118002]
[1722161932890,0.00084,67796.0,67795.0,0.119002]
[1722161933092,0.00084,67796.0,67795.0,0.117002]
[1722161933291,0.00084,67796.0,67795.0,0.001]
[1722161933526,0.00084,67796.0,67795.0,0.119002]
[1722161933929,0.00084,67796.0,67795.0,0.122002]
[1722161934135,0.00084,67796.0,67795.0,0.121002]
[1722161934358,0.00084,67796.0,67795.0,0.593012]
[1722161934993,0.00084,67796.0,67795.0,0.595012]
[1722161935504,0.00084,67796.0,67795.0,1.12287657]
[1722161935697,0.00084,67796.0,67795.0,0.88687157]
[1722161936321,0.00084,67796.0,67795.0,1.12287657]
[1722161938588,0.00084,67796.0,67795.0,0.736612]
[1722161938789,0.00084,67796.0,67795.0,0.500607]
[1722161939128,0.00084,67796.0,67795.0,0.422107]
[1722161939460,0.00084,67796.0,67795.0,0.0681]
[1722161939666,0.00084,67796.0,67795.0,0.422107]
[1722161940313,0.00084,67796.0,67795.0,0.005]
[1722161940671,0.00889744,67796.0,67795.0,0.005]
[1722161940912,0.00084,67796.0,67795.0,0.005]
[1722161941380,0.00889744,67796.0,67795.0,0.005]
[1722161941643,0.00084,67796.0,67795.0,0.005]
[1722161941870,0.00889744,67796.0,67795.0,0.005]
[1722161942157,0.118841,67796.0,67795.0,0.005]
[1722161942616,0.12689844,67796.0,67795.0,0.005]
[1722161943302,0.36290044,67796.0,67795.0,0.005]
[1722161944546,0.36290044,67796.0,67795.0,0.002]
[1722161944547,0.59890244,67796.0,67795.0,0.002]
[1722161944755,0.236017,67792.0,67786.0,0.1]
[1722161944955,0.01089744,67796.0,67786.0,0.1]
[1722161945170,0.0080917,67791.0,67790.0,0.118011]
[1722161945376,0.120841,67796.0,67790.0,0.118011]
[1722161945606,0.00284,67796.0,67793.0,0.236012]
[1722161945829,0.0080917,67795.0,67794.0,0.118004]
[1722161946259,0.0080917,67795.0,67792.0,0.236015]
[1722161946260,0.0080917,67795.0,67792.0,0.118007]
[1722161947163,0.0080917,67795.0,67793.0,0.118006]
[1722161947853,0.0080917,67795.0,67794.0,0.001]
[1722161948027,0.0080917,67795.0,67794.0,0.355013]
[1722161948475,0.00084,67796.0,67795.0,0.118002]
[1722161949956,0.00084,67796.0,67795.0,0.354007]
[1722161950141,0.00084,67796.0,67795.0,0.118002]
[1722161950343,0.00084,67796.0,67795.0,0.121002]
[1722161950630,0.00084,67796.0,67795.0,0.357007]
[1722161951049,0.00084,67796.0,67795.0,0.121002]
[1722161951258,0.00084,67796.0,67795.0,0.003]
[1722161951855,0.00084,67796.0,67795.0,0.123002]
[1722161952059,0.00084,67796.0,67795.0,0.359007]
[1722161953260,0.00084,67796.0,67795.0,0.123002]
[1722161953461,0.00084,67796.0,67795.0,0.359007]
[1722161954280,0.00084,67796.0,67795.0,0.595012]
[1722161954451,0.00084,67796.0,67795.0,0.359007]
[1722161955263,0.00084,67796.0,67795.0,0.123002]
[1722161955904,0.0089594,67796.0,67795.0,0.123002]
[1722161956110,0.0089594,67796.0,67795.0,0.005]
[1722161956539,0.05950929,67796.0,67795.0,0.005]
[1722161957633,0.05933191,67796.0,67795.0,0.005]
[1722161958011,0.17733291,67796.0,67795.0,0.005]
[1722161958239,0.05933191,67796.0,67795.0,0.005]
[1722161958665,0.20545405,67796.0,67795.0,0.005]
[1722161959816,0.08745305,67796.0,67795.0,0.005]
[1722161960025,0.44145605,67796.0,67795.0,0.005]
[1722161960653,0.62708554,67796.0,67795.0,0.005]
[1722161960854,0.67679857,67796.0,67795.0,0.005]
[1722161961055,0.67679857,67796.0,67795.0,0.005913]
[1722161961262,0.62708554,67796.0,67795.0,0.002913]
[1722161961464,0.67657807,67796.0,67795.0,0.000913]
[1722161962453,0.44057607,67796.0,67795.0,0.000913]
[1722161963253,0.67657807,67796.0,67795.0,0.000913]
[1722161964029,0.67649628,67796.0,67795.0,0.000913]
[1722161964229,0.44049428,67796.0,67795.0,0.000913]
[1722161964428,0.19637288,67796.0,67795.0,0.000913]
[1722161964898,0.43237488,67796.0,67795.0,0.000913]
[1722161965428,0.43237488,67796.0,67795.0,0.118915]
[1722161965429,0.07837188,67796.0,67795.0,0.118915]
[1722161966113,0.07837188,67796.0,67795.0,0.35492]
[1722161966782,0.07837188,67796.0,67795.0,0.121915]
[1722161966988,0.07837188,67796.0,67795.0,0.260915]
[1722161967162,0.07837188,67796.0,67795.0,0.142913]
[1722161967392,0.07828818,67796.0,67795.0,0.064213]
[1722161967953,0.19628918,67796.0,67795.0,0.003913]
[1722161968352,0.19628918,67796.0,67795.0,0.005913]
[1722161969187,0.07828818,67796.0,67795.0,0.005913]
[1722161969563,0.07807276,67796.0,67795.0,0.005913]
[1722161970580,0.02896114,67796.0,67795.0,0.005913]
[1722161970782,0.07804489,67796.0,67795.0,0.005913]
[1722161971121,0.02896114,67796.0,67795.0,0.005913]
[1722161971344,0.07832346,67796.0,67795.0,0.005913]
[1722161973860,0.07851673,67796.0,67795.0,0.005913]
[1722161977232,0.07840701,67796.0,67795.0,0.005913]
[1722161977431,0.47669563,67796.0,67795.0,0.005913]
[1722161978019,0.12269263,67796.0,67795.0,0.005913]
[1722161978249,0.07840701,67796.0,67795.0,0.005913]
[1722161980424,0.1669861,67796.0,67795.0,0.005913]
[1722161981034,0.16696079,67796.0,67795.0,0.005913]
[1722161981237,0.18910578,67796.0,67795.0,0.005913]
[1722161981436,0.07838084,67796.0,67795.0,0.005913]
[1722161983688,0.02896114,67796.0,67795.0,0.005913]
[1722161983899,0.07857923,67796.0,67795.0,0.005913]
[1722161986808,0.07857923,67796.0,67795.0,0.123915]
[1722161987010,0.07854329,67796.0,67795.0,0.123915]
[1722161987589,0.07854329,67796.0,67795.0,0.35992]
[1722161987795,0.07854329,67796.0,67795.0,0.123915]
[1722161988046,0.07854329,67796.0,67795.0,0.35992]
[1722161989409,0.07854329,67796.0,67795.0,0.595925]
[1722161990201,0.08031824,67796.0,67795.0,0.595925]
[1722161990606,0.02896114,67796.0,67795.0,0.737725]
[1722161991005,0.0521971,67796.0,67795.0,0.737725]
[1722161991238,0.19110106,67796.0,67795.0,1.12398957]
[1722161991642,0.08031824,67796.0,67795.0,1.12398957]
[1722161992629,0.02896114,67796.0,67795.0,1.12398957]
[1722161992775,0.07828871,67796.0,67795.0,1.12398957]
[1722161993197,0.07828871,67796.0,67795.0,0.88798457]
[1722161993400,0.02892114,67796.0,67795.0,0.80798457]
[1722161993958,0.07829521,67796.0,67795.0,0.80798457]
[1722161994406,0.14475053,67796.0,67795.0,0.80798457]
[1722161994609,0.11662939,67796.0,67795.0,0.80798457]
[1722161995181,0.05017407,67796.0,67795.0,0.80798457]
[1722161995402,0.11662893,67796.0,67795.0,0.88798457]
[1722161995603,0.05017407,67796.0,67795.0,0.88798457]
[1722161995741,0.11662893,67796.0,67795.0,0.88798457]
[1722161995979,0.05017407,67796.0,67795.0,0.88798457]
[1722161996203,0.08773699,67796.0,67795.0,0.88798457]
[1722161996451,0.11662339,67796.0,67795.0,0.88798457]
[1722161996701,0.15548809,67796.0,67795.0,0.88798457]
[1722161997369,0.08904306,67796.0,67795.0,0.88798457]
[1722161997607,0.05125255,67796.0,67795.0,0.88798457]
[1722161998343,0.09554363,67796.0,67795.0,0.88798457]
[1722161999773,0.04508829,67796.0,67795.0,0.88798457]
[1722161999991,0.05109567,67796.0,67795.0,0.88798457]
[1722162000222,0.0008,67796.0,67795.0,0.88798457]
[1722162000707,0.05126981,67796.0,67795.0,0.88798457]
[1722162002339,0.05126981,67796.0,67795.0,0.737725]
[1722162002340,0.05127399,67796.0,67795.0,0.737725]
[1722162003502,0.15353594,67796.0,67795.0,0.737725]
[1722162003735,0.05127399,67796.0,67795.0,0.737725]
[1722162004207,0.15353579,67796.0,67795.0,0.737725]
[1722162004465,0.05127399,67796.0,67795.0,0.737725]
[1722162004933,0.09555745,67796.0,67795.0,0.737725]
[1722162005172,0.09555508,67796.0,67795.0,0.737725]
[1722162005406,0.09486275,67796.0,67795.0,0.88798457]
[1722162005678,0.11070496,67801.0,67795.0,0.88798457]
[1722162005679,0.00832,67807.0,67806.0,0.117983]
[1722162005909,0.00832,67807.0,67806.0,0.98347657]
[1722162006142,0.00832,67807.0,67806.0,0.59725]
[1722162006374,0.00832,67807.0,67806.0,0.833217]
[1722162007089,0.00832,67807.0,67806.0,1.069184]
[1722162007321,0.00832,67807.0,67806.0,0.98347657]
[1722162007556,0.00832,67807.0,67806.0,0.837217]
[1722162008003,0.00832,67807.0,67806.0,1.073184]
[1722162008234,0.00832,67807.0,67806.0,0.842217]
[1722162009197,0.00832,67807.0,67806.0,0.763817]
[1722162010110,0.00832,67807.0,67806.0,0.842217]
[1722162011295,0.00832,67807.0,67806.0,0.226983]
[1722162011535,0.00832,67807.0,67806.0,0.698917]
[1722162015447,0.00832,67807.0,67806.0,1.078184]
[1722162015671,0.00832,67807.0,67806.0,1.22844357]
[1722162020076,0.00832,67807.0,67806.0,1.46441057]
[1722162023765,0.00832,67807.0,67806.0,0.109]
[1722162023976,0.00832,67807.0,67806.0,0.009]
[1722162024175,0.06546261,67807.0,67806.0,0.009]
[1722162024601,0.06546707,67807.0,67806.0,0.009]
[1722162024801,0.18344807,67807.0,67806.0,0.009]
[1722162025008,0.18344807,67807.0,67806.0,0.004]
[1722162025208,0.22761901,67807.0,67806.0,0.004]
[1722162025736,0.86213745,67807.0,67806.0,0.004]
[1722162026050,0.79587407,67807.0,67806.0,0.004]
[1722162026256,0.0762,67802.0,67797.0,0.117997]
[1722162026383,0.69003496,67807.0,67796.0,0.0015542]
[1722162026384,0.0391156,67801.0,67800.0,0.117994]
[1722162026585,0.04417691,67805.0,67803.0,0.117988]
[1722162026785,0.07458536,67807.0,67801.0,0.235983]
[1722162026786,0.05490805,67804.0,67801.0,0.235983]
[1722162027024,0.05490805,67803.0,67802.0,0.1]
[1722162027191,0.05490805,67803.0,67802.0,0.21799]
[1722162027388,0.05490805,67803.0,67802.0,0.1]
[1722162027625,0.117983,67806.0,67801.0,0.1]
[1722162027830,0.05425978,67805.0,67801.0,0.217992]
[1722162028028,0.05425978,67804.0,67801.0,0.1]
[1722162028230,0.05425978,67803.0,67800.0,0.118906]
[1722162028467,0.00832,67807.0,67802.0,0.003]
[1722162028638,0.00832,67807.0,67806.0,0.35395]
[1722162028848,0.06325375,67807.0,67806.0,0.589917]
[1722162029404,0.06325375,67807.0,67806.0,0.35395]
[1722162029405,0.04716337,67807.0,67806.0,0.35395]